bitfinex/quotes_SOLUSD_20250929
["timestamp","ask_amount","ask_price","bid_price","bid_amount"]
[1759133108691,20.09378857,209.59,209.58,0.1]
[1759133109682,46.09378857,209.59,209.58,0.1]
[1759133109899,20.09378857,209.59,209.58,0.1]
[1759133110206,46.09378857,209.59,209.58,0.1]
[1759133110497,20.09378857,209.59,209.58,0.1]
[1759133110698,1.52697456,209.52,209.51,26.6]
[1759133110939,1.52697456,209.52,209.51,0.1]
[1759133111281,15.12256857,209.52,209.51,0.1]
[1759133112500,0.2,209.55,209.51,0.1]
[1759133112700,1.52697456,209.52,209.51,0.1]
[1759133113088,15.12256857,209.52,209.51,0.1]
[1759133115224,19.89538262,209.52,209.51,0.1]
[1759133116400,20.09538262,209.52,209.51,0.1]
[1759133117492,19.89538262,209.52,209.51,0.1]
[1759133118608,13.59559401,209.52,209.51,0.77]
[1759133118805,15.12256857,209.52,209.51,0.77]
[1759133118988,1.52697456,209.52,209.51,0.77]
[1759133121112,26.0,209.52,209.51,5.54304185]
[1759133121693,1.52697456,209.57,209.51,5.54304185]
[1759133121915,1.52697456,209.58,209.52,0.71]
[1759133122220,26.0,209.57,209.52,0.71]
[1759133122514,26.0,209.57,209.53,4.77258626]
[1759133122719,26.0,209.57,209.54,0.71]
[1759133123423,26.0,209.57,209.53,4.77258626]
[1759133123617,26.0,209.57,209.55,0.71]
[1759133123804,26.0,209.57,209.56,0.71]
[1759133124113,27.52697456,209.57,209.56,0.71]
[1759133124306,42.17055285,209.62,209.56,0.71]
[1759133124617,1.52697456,209.6,209.56,5.48180403]
[1759133124823,1.52697456,209.6,209.57,0.71]
[1759133125027,26.0,209.58,209.56,4.77180403]
[1759133125394,41.97006896,209.65,209.56,4.77180403]
[1759133125711,13.59559401,209.66,209.57,0.71]
[1759133126018,26.0,209.63,209.57,0.71]
[1759133126408,13.59559401,209.67,209.58,6.29842221]
[1759133126611,13.59559401,209.67,209.59,0.71]
[1759133126811,1.52697456,209.68,209.59,0.71]
[1759133127016,1.52697456,209.7,209.6,1.52697456]
[1759133127320,26.0,209.68,209.61,0.71]
[1759133128418,26.0,209.68,209.62,16.69688006]
[1759133128720,13.59559401,209.63,209.6,4.77084564]
[1759133128897,26.0,209.6,209.57,0.71]
[1759133129097,26.0,209.6,209.56,11.92956359]
[1759133129098,26.0,209.6,209.56,4.77172499]
[1759133129417,26.0,209.6,209.57,0.71]
[1759133129825,26.0,209.6,209.58,0.71]
[1759133130030,26.0,209.6,209.56,5.48172499]
[1759133130319,26.0,209.6,209.57,5.48154999]
[1759133130507,26.0,209.6,209.58,0.71]
[1759133130940,26.0,209.6,209.59,0.71]
[1759133131228,26.0,209.6,209.57,4.77154999]
[1759133131531,26.0,209.6,209.58,0.71]
[1759133133010,26.0,209.6,209.57,4.77154999]
[1759133133734,26.0,209.6,209.57,5.48154999]
[1759133133922,26.0,209.59,209.57,5.48154999]
[1759133134239,26.0,209.59,209.57,0.71]
[1759133135729,26.0,209.59,209.57,5.48166041]
[1759133136109,26.0,209.59,209.57,0.71]
[1759133136828,26.0,209.59,209.56,4.77187955]
[1759133137035,26.0,209.59,209.56,5.48187955]
[1759133137234,26.0,209.59,209.57,0.71]
[1759133138224,27.52697456,209.6,209.57,0.71]
[1759133138432,26.0,209.59,209.55,0.71]
[1759133138730,26.0,209.59,209.56,0.71]
[1759133139034,1.52697456,209.58,209.54,0.71]
[1759133139325,1.52697456,209.58,209.55,0.71]
[1759133140138,26.0,209.6,209.55,0.71]
[1759133140436,27.52697456,209.6,209.53,11.93146566]
[1759133140739,27.52697456,209.6,209.54,0.71]
[1759133140920,32.29813115,209.6,209.54,0.71]
[1759133141128,1.52697456,209.58,209.54,0.71]
[1759133141827,1.52697456,209.58,209.55,0.71]
[1759133143241,26.0,209.55,209.52,0.71]
[1759133143944,27.52697456,209.58,209.52,0.71]
[1759133144344,1.52697456,209.62,209.52,2.23697456]
[1759133144644,4.76969299,209.66,209.56,1.52697456]
[1759133144823,4.76969299,209.66,209.58,4.77144765]
[1759133145025,26.0,209.62,209.59,0.71]
[1759133145222,15.12256857,209.67,209.59,0.71]
[1759133145421,26.0,209.65,209.59,0.71]
[1759133145636,26.0,209.67,209.59,0.71]
[1759133146227,26.0,209.63,209.59,0.71]
[1759133146526,26.0,209.63,209.6,0.71]
[1759133147242,26.0,209.63,209.61,4.77076475]
[1759133147443,26.0,209.63,209.6,4.77097081]
[1759133147631,26.0,209.63,209.6,5.48097081]
[1759133148747,26.0,209.63,209.6,17.40845172]
[1759133149460,26.0,209.63,209.6,16.69845172]
[1759133149631,26.0,209.63,209.61,0.71]
[1759133150135,2.38820222,209.68,209.62,0.71]
[1759133150447,26.0,209.66,209.62,0.71]
[1759133151142,26.0,209.66,209.63,0.68]
[1759133151529,37.1,209.7,209.65,4.76985451]
[1759133151730,27.38820222,209.7,209.66,0.68]
[1759133151950,28.38820222,209.7,209.66,0.68]
[1759133152240,28.38820222,209.7,209.65,4.76985451]
[1759133152458,26.0,209.7,209.66,0.68]
[1759133152631,26.0,209.7,209.67,0.68]
[1759133153027,26.0,209.7,209.65,16.6944908]
[1759133153341,26.0,209.7,209.66,0.68]
[1759133153936,26.0,209.7,209.67,4.76939953]
[1759133154339,26.0,209.7,209.67,5.44939953]
[1759133154540,26.0,209.7,209.6,11.92554115]
[1759133154541,2.58820222,209.69,209.62,11.92601167]
[1759133154738,2.38820222,209.67,209.62,11.92601167]
[1759133154936,2.38820222,209.67,209.62,12.60601167]
[1759133155126,2.38820222,209.67,209.63,0.68]
[1759133155831,2.38820222,209.67,209.64,0.68]
[1759133156453,2.38820222,209.68,209.64,0.68]
[1759133156666,2.38820222,209.68,209.63,16.69593032]
[1759133156830,2.38820222,209.66,209.63,4.77015634]
[1759133157031,2.38820222,209.66,209.6,12.60701906]
[1759133157346,2.38820222,209.64,209.6,49.68701906]
[1759133157551,2.38820222,209.64,209.61,0.68]
[1759133157736,2.38820222,209.64,209.61,5.45076475]
[1759133158145,2.38820222,209.64,209.61,4.77076475]
[1759133158337,26.0,209.65,209.61,4.77076475]
[1759133158657,2.38820222,209.64,209.61,5.45076475]
[1759133159247,2.38820222,209.62,209.57,12.608802]
[1759133159449,2.38820222,209.62,209.58,0.68]
[1759133159633,2.38820222,209.6,209.56,4.77190303]
[1759133159836,2.38820222,209.6,209.56,0.68]
[1759133160056,2.38820222,209.6,209.57,0.68]
[1759133160458,26.0,209.61,209.55,0.68]
[1759133160654,2.38820222,209.59,209.55,0.68]
[1759133160966,2.38820222,209.57,209.54,37.08]
[1759133161343,2.38820222,209.57,209.54,37.76]
[1759133161750,2.38820222,209.57,209.55,4.77213075]
[1759133161957,2.38820222,209.57,209.54,37.76]
[1759133162336,28.38820222,209.59,209.55,0.68]
[1759133162541,28.38820222,209.59,209.56,0.68]
[1759133164554,13.79559401,209.63,209.57,4.77167533]
[1759133164755,26.0,209.6,209.57,4.77167533]
[1759133164956,2.38820222,209.62,209.58,0.68]
[1759133165163,28.38820222,209.62,209.58,0.68]
[1759133165354,26.0,209.62,209.59,0.68]
[1759133165670,26.0,209.62,209.6,0.68]
[1759133165875,26.0,209.62,209.58,0.68]
[1759133166042,28.38820222,209.62,209.59,0.68]
[1759133166868,28.38820222,209.62,209.57,12.60918833]
[1759133167069,28.38820222,209.62,209.58,0.68]
[1759133167651,26.0,209.61,209.58,0.68]
[1759133167852,2.38820222,209.61,209.58,0.68]
[1759133168050,28.38820222,209.63,209.59,0.68]
[1759133169071,26.0,209.62,209.57,0.68]
[1759133169573,26.0,209.62,209.58,0.68]
[1759133170268,26.0,209.62,209.59,4.77122]
[1759133171161,13.59559401,209.66,209.6,0.68]
[1759133171360,2.38820222,209.63,209.6,0.68]
[1759133171872,2.38820222,209.63,209.59,4.77122]
[1759133172876,28.38820222,209.63,209.58,4.77144765]
[1759133173076,2.38820222,209.61,209.58,4.77144765]
[1759133173372,2.38820222,209.61,209.59,0.65]
[1759133173674,2.38820222,209.63,209.6,0.65]
[1759133174462,2.38820222,209.65,209.61,0.65]
[1759133174668,2.38820222,209.65,209.63,4.77030959]
[1759133174884,26.0,209.64,209.63,4.77030959]
[1759133176879,26.0,209.64,209.62,4.77053716]
[1759133178354,132.8,209.72,209.62,16.69688006]
[1759133178561,2.38820222,209.7,209.63,0.65]
[1759133178781,37.2,209.74,209.63,0.65]
[1759133178990,2.38820222,209.72,209.64,16.69528715]
[1759133179284,26.0,209.7,209.65,0.65]
[1759133180104,2.38820222,209.72,209.65,0.65]
[1759133181087,2.38820222,209.72,209.66,16.69369454]
[1759133181298,2.38820222,209.72,209.66,17.38369454]
[1759133182508,26.0,209.72,209.66,17.38369454]
[1759133183997,2.38820222,209.71,209.66,17.38369454]
[1759133184295,28.38820222,209.71,209.68,4.76917207]
[1759133184875,2.38820222,209.71,209.67,5.4593909]
[1759133186395,2.38820222,209.71,209.67,0.69]
[1759133186787,2.38820222,209.71,209.65,17.38425165]
[1759133187181,2.38820222,209.71,209.66,0.69]
[1759133187376,2.38820222,209.71,209.67,0.69]
[1759133187798,2.38820222,209.71,209.67,4.76918106]
[1759133188014,2.58820222,209.71,209.67,4.76918106]
[1759133188193,2.38820222,209.71,209.67,4.76918106]
[1759133188389,41.98379623,209.71,209.67,0.69]
[1759133188586,26.0,209.68,209.64,0.69]
[1759133189192,26.0,209.68,209.65,0.69]
[1759133189701,2.38820222,209.67,209.63,4.77030959]
[1759133189907,2.38820222,209.67,209.63,5.46030959]
[1759133190084,2.38820222,209.67,209.64,0.69]
[1759133191010,2.38820222,209.67,209.59,11.92790697]
[1759133191202,2.38820222,209.65,209.61,0.69]
[1759133191588,2.38820222,209.65,209.62,0.69]
[1759133192307,2.38820222,209.65,209.55,11.93008694]
[1759133192492,2.38820222,209.61,209.56,0.69]
[1759133192696,2.38820222,209.61,209.57,36.96]
[1759133192897,2.38820222,209.61,209.58,0.69]
[1759133193194,2.38820222,209.61,209.57,36.96]
[1759133193195,2.38820222,209.61,209.59,0.69]
[1759133193526,0.2,209.65,209.6,0.69]
[1759133193527,28.38820222,209.62,209.6,0.69]
[1759133194715,28.38820222,209.62,209.57,5.46157505]
[1759133194902,2.38820222,209.59,209.55,0.69]
[1759133195203,2.38820222,209.59,209.56,0.69]
[1759133195610,2.38820222,209.59,209.55,4.77213043]
[1759133195806,2.38820222,209.57,209.5,11.93272335]
[1759133196014,2.38820222,209.57,209.52,0.69]
[1759133196303,26.0,209.56,209.53,0.69]
[1759133196690,26.0,209.56,209.51,37.08]
[1759133196891,26.0,209.56,209.52,0.69]
[1759133197104,2.38820222,209.57,209.53,5.46252881]
[1759133197485,26.0,209.56,209.54,0.69]
[1759133197707,132.8,209.66,209.54,0.69]
[1759133197893,15.98379623,209.65,209.54,0.69]
[1759133198211,26.0,209.62,209.54,0.69]
[1759133198588,15.98379623,209.65,209.54,0.69]
[1759133198915,26.0,209.62,209.54,0.69]
[1759133199202,26.0,209.62,209.55,16.70245764]
[1759133199401,26.0,209.62,209.56,0.69]
[1759133199791,26.0,209.62,209.56,37.73]
[1759133199991,26.0,209.62,209.57,0.69]
[1759133200626,26.0,209.62,209.58,0.69]
[1759133200793,26.0,209.62,209.59,0.69]
[1759133200995,2.38820222,209.64,209.6,0.69]
[1759133201306,26.0,209.65,209.61,4.77076475]
[1759133201487,26.0,209.65,209.61,5.46076475]
[1759133202507,2.38820222,209.66,209.6,4.77095819]
[1759133202508,0.2,209.64,209.6,4.77095819]
[1759133202899,26.0,209.65,209.6,4.77095819]
[1759133203104,26.2,209.65,209.6,5.46095819]
[1759133203303,0.2,209.64,209.6,4.77095819]
[1759133203496,0.2,209.63,209.56,0.69]
[1759133203696,0.2,209.63,209.56,37.71]
[1759133203909,2.38820222,209.61,209.57,0.69]
[1759133204213,28.38820222,209.59,209.53,37.71]
[1759133204400,28.38820222,209.59,209.55,4.77213075]
[1759133204596,28.38820222,209.59,209.55,5.46213075]
[1759133205102,26.0,209.59,209.55,4.77213075]
[1759133205295,26.0,209.59,209.56,0.69]
[1759133205516,26.0,209.59,209.57,0.69]
[1759133206014,26.0,209.59,209.55,5.46213075]
[1759133206216,26.0,209.59,209.56,0.69]
[1759133206512,26.0,209.59,209.54,11.93070927]
[1759133206513,28.38820222,209.58,209.54,4.77235849]
[1759133206808,28.38820222,209.58,209.54,5.46235849]
[1759133208111,2.38820222,209.58,209.54,0.69]
[1759133208310,4.76943571,209.67,209.55,0.69]
[1759133208615,1.5294057,209.64,209.55,0.69]
[1759133210115,1.5294057,209.64,209.56,16.70166061]
[1759133210310,1.5294057,209.64,209.57,37.71]
[1759133210491,1.5294057,209.64,209.58,0.69]
[1759133211514,0.2,209.67,209.58,0.69]
[1759133211712,1.5294057,209.66,209.58,0.69]
[1759133211917,27.5294057,209.66,209.58,0.69]
[1759133213222,26.0,209.65,209.59,16.69927]
[1759133213511,26.0,209.65,209.59,17.35927]
[1759133213713,26.0,209.65,209.6,0.66]
[1759133213921,26.0,209.65,209.61,0.66]
[1759133214103,26.0,209.65,209.59,16.69927]
[1759133214308,1.5294057,209.64,209.59,16.69927]
[1759133214618,1.5294057,209.64,209.6,0.66]
[1759133215210,1.5294057,209.65,209.61,4.77076475]
[1759133215800,1.5294057,209.63,209.59,4.77099265]
[1759133216101,1.5294057,209.63,209.59,5.43099265]
[1759133216898,1.5294057,209.63,209.59,4.77099265]
[1759133217102,1.5294057,209.61,209.58,4.77142808]
[1759133217311,27.5294057,209.61,209.58,4.77142808]
[1759133217515,1.5294057,209.61,209.58,4.77142808]
[1759133218313,27.5294057,209.59,209.55,37.0]
[1759133218511,27.5294057,209.59,209.55,37.66]
[1759133218711,27.5294057,209.59,209.56,0.66]
[1759133218912,27.5294057,209.59,209.55,37.0]
[1759133219107,27.5294057,209.59,209.56,0.66]
[1759133219708,1.5294057,209.6,209.56,4.77168722]
[1759133219915,26.2,209.62,209.57,0.66]
[1759133219916,1.5294057,209.61,209.57,0.66]
[1759133220110,27.5294057,209.61,209.57,0.66]
[1759133220628,1.5294057,209.59,209.56,4.77168722]
[1759133220832,1.5294057,209.59,209.56,5.43168722]
[1759133221333,1.5294057,209.59,209.56,4.77168722]
[1759133221516,1.5294057,209.59,209.55,36.98]
[1759133221714,1.5294057,209.59,209.55,37.64]
[1759133222426,1.5294057,209.59,209.52,14.35235019]
[1759133222629,1.5294057,209.57,209.52,41.7527755]
[1759133222930,26.0,209.56,209.52,42.4127755]
[1759133223124,26.0,209.56,209.52,37.64]
[1759133223603,26.0,209.56,209.53,0.66]
[1759133224117,26.0,209.56,209.52,36.98]
[1759133224325,26.0,209.56,209.53,0.66]
[1759133224524,26.0,209.56,209.54,5.43223162]
[1759133226331,26.0,209.56,209.53,4.77258421]
[1759133226544,26.0,209.56,209.53,0.66]
[1759133226838,26.2,209.56,209.51,37.74]
[1759133227134,26.0,209.56,209.51,37.74]
[1759133227510,26.2,209.55,209.51,0.1]
[1759133227741,26.0,209.52,209.51,0.1]
[1759133229756,30.97281405,209.52,209.51,0.1]
[1759133230037,46.09781376,209.52,209.51,0.1]
[1759133232108,83.07781376,209.52,209.51,0.1]
[1759133232307,13.59559401,209.51,209.49,0.1]
[1759133232539,15.12499971,209.5,209.49,0.1]
[1759133232838,13.59559401,209.49,209.48,0.1]
[1759133233234,13.79559401,209.49,209.48,0.1]
[1759133233735,18.56909155,209.49,209.48,0.1]
[1759133234733,19.89849725,209.49,209.48,0.1]
[1759133234940,20.09849725,209.49,209.48,0.1]
[1759133236051,19.89849725,209.49,209.48,0.1]
[1759133241245,20.09849725,209.49,209.48,0.1]
[1759133241940,19.89849725,209.49,209.48,0.1]
[1759133244254,20.09849725,209.49,209.48,0.1]
[1759133245648,20.10070915,209.49,209.48,0.1]
[1759133247055,18.36909155,209.49,209.48,0.1]
[1759133247231,19.90070915,209.49,209.48,0.78]
[1759133247431,19.90070915,209.49,209.48,0.1]
[1759133248330,19.90070915,209.49,209.48,0.78]
[1759133248850,19.90070915,209.49,209.48,0.1]
[1759133250668,132.8,209.51,209.48,0.78]
[1759133250957,36.98,209.55,209.48,0.78]
[1759133251149,26.0,209.51,209.48,5.55364596]
[1759133251354,26.0,209.51,209.49,0.68]
[1759133251571,15.12721161,209.54,209.49,0.68]
[1759133251732,1.5316176,209.52,209.5,0.68]
[1759133251938,26.0,209.51,209.5,0.68]
[1759133252840,6.30445803,209.52,209.5,0.68]
[1759133253773,26.0,209.49,209.48,0.1]
[1759133255054,26.0,209.5,209.48,0.1]
[1759133255458,1.5316176,209.49,209.48,0.78]
[1759133256737,15.12721161,209.49,209.48,0.1]
[1759133256942,41.12721161,209.49,209.48,0.1]
[1759133257271,15.12721161,209.49,209.48,0.1]
[1759133257780,19.90070915,209.49,209.48,0.1]
[1759133259164,45.90070915,209.49,209.48,0.1]
[1759133259342,19.90070915,209.49,209.48,0.1]
[1759133259546,45.90070915,209.49,209.48,0.1]
[1759133259766,45.90070915,209.49,209.43,0.1]
[1759133259767,20.10070915,209.49,209.43,0.1]
[1759133259947,1.5316176,209.44,209.43,0.1]
[1759133260772,1.5316176,209.44,209.43,0.78]
[1759133266085,1.5316176,209.44,209.43,0.1]
[1759133268875,32.30625472,209.44,209.43,0.1]
[1759133269454,27.5316176,209.44,209.43,0.1]
[1759133269962,27.5316176,209.44,209.43,0.78]
[1759133270277,28.39382325,209.44,209.43,0.78]
[1759133270578,7.16846037,209.44,209.43,0.1]
[1759133270753,46.76405438,209.44,209.43,0.1]
[1759133273655,46.96405438,209.44,209.43,0.1]
[1759133274273,46.76405438,209.44,209.43,0.1]
[1759133274453,47.96023238,209.44,209.43,0.1]
[1759133275878,48.16023238,209.44,209.43,0.1]
[1759133276180,13.59559401,209.43,209.37,0.1]
[1759133276388,15.98941726,209.38,209.37,0.1]
[1759133278167,20.7654226,209.38,209.37,0.1]
[1759133282806,20.7654226,209.38,209.32,0.1]
[1759133282807,39.59559401,209.34,209.32,0.1]
[1759133283080,2.39382325,209.33,209.32,0.1]
[1759133284167,7.17096938,209.33,209.32,0.1]
[1759133287975,7.17096938,209.33,209.32,0.77]
[1759133288373,28.39382325,209.33,209.32,0.77]
[1759133288577,28.39382325,209.33,209.32,5.54737435]
[1759133288780,26.0,209.33,209.32,5.54737435]
[1759133289475,132.8,209.37,209.32,5.54737435]
[1759133289682,26.0,209.34,209.33,0.67]
[1759133290569,26.0,209.34,209.33,5.44714613]
[1759133290969,26.0,209.39,209.33,17.39001146]
[1759133291192,26.0,209.39,209.34,0.67]
[1759133292200,26.0,209.39,209.35,4.77668975]
[1759133292366,26.0,209.39,209.36,0.67]
[1759133293467,2.39382325,209.38,209.36,0.7]
[1759133293666,13.59559401,209.36,209.32,0.1]
[1759133293886,26.0,209.34,209.33,0.7]
[1759133294097,28.39382325,209.34,209.33,0.7]
[1759133294667,28.39382325,209.34,209.32,0.1]
[1759133294668,26.0,209.33,209.32,0.1]
[1759133294875,26.0,209.33,209.32,0.8]
[1759133296691,26.0,209.33,209.32,5.57737435]
[1759133297598,26.0,209.33,209.32,0.8]
[1759133298586,26.0,209.33,209.32,0.1]
[1759133298981,26.0,209.33,209.32,0.8]
[1759133301003,26.0,209.33,209.32,5.57737435]
[1759133303692,26.0,209.33,209.32,0.8]
[1759133304395,26.0,209.33,209.32,5.57737435]
[1759133306996,28.39382325,209.33,209.32,5.57737435]
[1759133307699,28.39382325,209.33,209.32,0.8]
[1759133308009,28.39382325,209.33,209.32,0.1]
[1759133308188,28.39382325,209.33,209.32,0.76]
[1759133308607,28.39382325,209.33,209.32,0.1]
[1759133309010,28.39382325,209.33,209.32,5.53737435]
[1759133312107,2.39382325,209.35,209.32,5.53737435]
[1759133312309,2.39382325,209.39,209.33,0.66]
[1759133313097,2.39382325,209.39,209.34,4.77691793]
[1759133313299,2.39382325,209.37,209.35,0.66]
[1759133313505,2.39382325,209.37,209.36,0.66]
[1759133314406,28.39382325,209.39,209.36,0.66]
[1759133314799,26.0,209.39,209.37,0.66]
[1759133315004,26.0,209.39,209.34,16.71921276]
[1759133315307,26.0,209.39,209.35,5.43668975]
[1759133315505,28.39382325,209.39,209.35,5.43668975]
[1759133316204,28.39382325,209.39,209.36,0.66]
[1759133316505,28.39382325,209.39,209.34,41.75690616]
[1759133316711,28.39382325,209.39,209.37,0.66]
[1759133316911,4.77349754,209.49,209.37,0.66]
[1759133317114,2.39382325,209.45,209.38,16.71601871]
[1759133317288,28.39382325,209.45,209.39,37.64]
[1759133317486,28.39382325,209.45,209.4,0.66]
[1759133318195,28.39382325,209.45,209.41,4.77532114]
[1759133318393,2.39382325,209.45,209.42,0.66]
[1759133318717,2.39382325,209.45,209.43,0.66]
[1759133319916,2.39382325,209.47,209.44,4.77463712]
[1759133321207,2.39382325,209.47,209.41,11.93830285]
[1759133321411,2.39382325,209.47,209.42,0.66]
[1759133321709,2.39382325,209.47,209.43,0.66]
[1759133323298,26.0,209.48,209.44,16.71122993]
[1759133323502,2.39382325,209.52,209.45,0.66]
[1759133323724,26.0,209.51,209.45,0.66]
[1759133324430,26.0,209.5,209.45,37.62]
[1759133324599,26.0,209.5,209.46,0.66]
[1759133324799,26.0,209.5,209.47,0.66]
[1759133325319,26.0,209.51,209.48,0.66]
[1759133327116,26.0,209.51,209.49,0.66]
[1759133327793,26.0,209.5,209.47,4.77392175]
[1759133328402,2.39382325,209.5,209.47,4.77392175]
[1759133328715,2.39382325,209.48,209.45,41.73429067]
[1759133329090,2.39382325,209.48,209.45,4.77429067]
[1759133330109,2.39382325,209.48,209.46,0.66]
[1759133330504,26.0,209.5,209.46,0.66]
[1759133330505,28.39382325,209.5,209.46,0.66]
[1759133331215,28.39382325,209.5,209.46,4.7739554]
[1759133331417,29.34986615,209.54,209.47,0.66]
[1759133331418,31.7436894,209.54,209.47,0.66]
[1759133331721,57.7436894,209.54,209.47,0.66]
[1759133332213,56.87989,209.54,209.47,0.66]
[1759133332602,26.0,209.51,209.48,4.77372541]
[1759133333398,27.53002385,209.52,209.48,4.77372541]
[1759133333598,26.0,209.52,209.48,4.77372541]
[1759133333800,26.0,209.52,209.49,0.66]
[1759133334620,26.0,209.52,209.5,4.77326968]
[1759133335118,26.0,209.52,209.47,37.62]
[1759133335320,26.0,209.52,209.48,5.43372541]
[1759133335626,26.0,209.52,209.49,0.66]
[1759133336624,26.0,209.52,209.49,5.43337055]
[1759133337421,26.0,209.52,209.5,0.66]
[1759133338724,26.0,209.52,209.48,4.77372541]
[1759133338927,26.0,209.52,209.49,0.66]
[1759133340825,26.0,209.52,209.49,5.43328889]
[1759133341215,26.0,209.52,209.5,0.66]
[1759133341421,1.53002385,209.56,209.5,0.66]
[1759133341622,27.73002385,209.58,209.5,0.66]
[1759133342223,27.73002385,209.58,209.51,36.94]
[1759133342410,27.73002385,209.58,209.52,0.66]
[1759133343017,27.73002385,209.58,209.53,4.77258626]
[1759133343222,27.73002385,209.58,209.54,0.66]
[1759133343655,27.73002385,209.58,209.55,0.66]
[1759133344111,26.2,209.58,209.55,0.66]
[1759133344732,26.2,209.58,209.56,0.66]
[1759133345039,26.2,209.58,209.57,0.66]
[1759133345333,26.2,209.58,209.57,5.43167533]
[1759133350225,0.2,209.58,209.57,0.66]
[1759133350427,0.2,209.58,209.57,5.43167533]
[1759133351232,0.2,209.58,209.56,4.77186388]
[1759133351628,0.2,209.58,209.56,5.43186388]
[1759133352036,0.2,209.58,209.56,4.77186388]
[1759133352228,0.2,209.58,209.57,5.43167533]
[1759133354550,0.2,209.58,209.56,4.77188443]
[1759133354934,0.2,209.58,209.57,0.66]
[1759133356041,0.2,209.6,209.59,26.0]
[1759133356042,1e-08,209.6,209.59,26.0]
[1759133356245,1e-08,209.6,209.59,0.66]
[1759133356423,1e-08,209.6,209.59,42.37122]
[1759133357531,1e-08,209.6,209.59,42.35122]
[1759133357932,1e-08,209.6,209.59,5.43122]
[1759133358137,1e-08,209.6,209.59,42.35122]
[1759133358440,1e-08,209.6,209.58,4.77144765]
[1759133358673,26.00000001,209.6,209.55,4.77205236]
[1759133358825,26.00000001,209.6,209.56,36.92]
[1759133359153,1.53002385,209.59,209.55,0.66]
[1759133359331,1.53002385,209.59,209.53,4.77238339]
[1759133359332,1.73002385,209.59,209.56,36.92]
[1759133359532,1.53002385,209.57,209.53,5.43238339]
[1759133359852,1.53002385,209.57,209.54,37.58]
[1759133360037,1.53002385,209.59,209.55,0.66]
[1759133360232,1.53002385,209.59,209.56,0.66]
[1759133360542,1.53002385,209.59,209.56,5.43189154]
[1759133360844,0.2,209.58,209.52,4.77238339]
[1759133361038,1.53002385,209.59,209.5,36.92]
[1759133361039,1.53002385,209.55,209.5,36.92]
[1759133361221,1.53002385,209.53,209.5,0.68]
[1759133361627,1.53002385,209.53,209.51,36.92]
[1759133362038,1.53002385,209.53,209.47,0.68]
[1759133362235,1.53002385,209.53,209.48,36.92]
[1759133362430,1.53002385,209.53,209.49,0.68]
[1759133362636,1.53002385,209.53,209.5,0.68]
[1759133363231,1.53002385,209.53,209.48,41.69354645]
[1759133363528,1.53002385,209.53,209.49,0.68]
[1759133363936,1.53002385,209.53,209.48,41.69354645]
[1759133364136,1.53002385,209.53,209.49,0.68]
[1759133364651,1.53002385,209.53,209.48,41.69354645]
[1759133364948,27.53002385,209.54,209.49,37.6]
[1759133365254,27.53002385,209.54,209.5,0.68]
[1759133365460,27.53002385,209.54,209.5,37.6]
[1759133365749,1.53002385,209.51,209.5,37.6]
[1759133365952,1.53002385,209.51,209.5,0.68]
[1759133367057,1.53002385,209.51,209.49,36.92]
[1759133367431,1.53002385,209.51,209.49,37.6]
[1759133367844,1.53002385,209.51,209.48,4.77371938]
[1759133368044,26.0,209.54,209.5,0.68]
[1759133368249,1.53002385,209.53,209.51,0.68]
[1759133368548,1.53002385,209.53,209.52,0.68]